[Event "WYCC 2018 O14"]
[Site "Halkidiki"]
[Date "2018.10.30"]
[Round "11"]
[White "Cohen Revivo, Shoham"]
[Black "Soriano Quispe, Ivan Excender"]
[Result "1-0"]
[ECO "C50"]
[WhiteElo "2289"]
[BlackElo "2054"]
[Annotator "NA"]
[PlyCount "63"]
[EventDate "2018.10.20"]
[EventType "swiss"]
[EventCountry "GRE"]
[SourceTitle "playchess.com"]
[Source "ChessBase"]
[SourceQuality "1"]
[TimeControl "40/5400+30:1800+30"]

1. e4 {[%emt 0:00:00]} e5 {[%emt 0:00:00]} 2. Nf3 {[%emt 0:00:00]} Nc6 {[%emt 0:00:00]} 3. Bc4 {[%emt 0:00:00]} Bc5 {[%emt 0:00:00]} 4. O-O {[%emt 0:00:17]} d6 {[%emt 0:00:20]} 5. c3 {[%emt 0:00:40]} Nf6 {[%emt 0:00:32]} 6. d3 {[%emt 0:00:28]} a6 {[%emt 0:00:13]} 7. Nbd2 {[%emt 0:01:15]} O-O {[%emt 0:00:16]} 8. h3 {[%emt 0:02:14]} h6 {[%emt 0:00:43]} 9. Re1 {[%emt 0:00:47]} Ba7 {[%emt 0:01:31]} 10. Bb3 {[%emt 0:00:22]} Re8 {[%emt 0:02:17]} 11. Nf1 {[%emt 0:01:25]} Be6 {[%emt 0:00:14]} 12. Ng3 {[%emt 0:02:52]} d5 {[%emt 0:02:42] C54: Giuoco Piano: 4 c3 Nf6, main lines with 5 d4 and 5 d3} (12... Bxb3 13. Qxb3 Qd7 14. Be3 Bxe3 15. Rxe3 d5 16. Rae1 dxe4 17. dxe4 Na5 18. Qc2 Rad8 19. b3 Nc6 20. R3e2 {½-½ (52) Harikrishna,P (2762)-Matlakov,M (2691) Germany 2017}) 13. exd5 {[%emt 0:00:44]} Nxd5 {[%emt 0:01:20]} 14. Bc2 {[%emt 0:05:35] LiveBook: 30 Games} b5 {[%emt 0:03:14]} 15. a3 {[%emt 0:05:55]} Qd6 $146 {[%emt 0:08:10]} ({Predecessor:} 15... Rb8 16. Qd2 Qf6 17. Ne4 Qe7 18. Ng3 Qf6 19. Ne4 Qe7 20. Ng3 Qf6 {½-½ (20) Duboue,P (2189)-Joie,S (2304) Pau 2012}) 16. Ne4 {[%emt 0:08:34]} Qe7 {[%emt 0:03:33]} 17. d4 {[%emt 0:02:28]} Rad8 {[%emt 0:05:12]} 18. Ng3 {[%emt 0:08:27]} exd4 {[%emt 0:04:32]} 19. cxd4 {[%emt 0:01:30]} Nf6 {[%emt 0:12:14]} 20. Be3 {[%emt 0:05:13]} Qd6 {[%emt 0:04:19]} 21. Qd3 {[%emt 0:16:28]} Nxd4 {[%emt 0:02:48]} 22. Nxd4 {[%emt 0:01:09]} Bxd4 {[%emt 0:00:08]} 23. Ne4 {[%emt 0:01:25]} Nxe4 {[%emt 0:06:10]} 24. Qxe4 {[%emt 0:00:07]} Bxb2 {[%emt 0:06:18]} 25. Qh7+ {[%emt 0:02:02]} Kf8 {[%emt 0:00:07]} 26. Rab1 {[%emt 0:07:38]} Qxa3 {[%emt 0:02:19]} 27. Be4 {[%emt 0:03:21]} Ke7 {[%emt 0:15:14]} 28. Bc6 $17 {[%emt 0:00:41]} Rh8 {[%emt 0:05:51]} 29. Qc2 {[%emt 0:00:12]} Bd4 {[%emt 0:00:19]} 30. Bd2 {[%emt 0:16:27]} Kf6 {[%emt 0:09:01]} 31. Bb4 {[%emt 0:02:58]} Qa2 {[%emt 0:01:34]} 32. Be7+ {[%emt 0:00:14]} 1-0

[Event "WYCC 2018 O14"]
[Site "Halkidiki"]
[Date "2018.10.30"]
[Round "11"]
[White "Kushagra Mohan"]
[Black "Galkin, Gleb"]
[Result "0-1"]
[ECO "C45"]
[WhiteElo "2283"]
[BlackElo "2134"]
[Annotator "NA"]
[PlyCount "86"]
[EventDate "2018.10.20"]
[EventType "swiss"]
[EventCountry "GRE"]
[SourceTitle "playchess.com"]
[Source "ChessBase"]
[SourceQuality "1"]
[TimeControl "40/5400+30:1800+30"]

1. e4 {[%emt 0:00:00]} e5 {[%emt 0:00:00]} 2. Nf3 {[%emt 0:00:00]} Nc6 {[%emt 0:00:00]} 3. d4 {[%emt 0:00:00]} exd4 {[%emt 0:00:00]} 4. Nxd4 {[%emt 0:00:00]} Bc5 {[%emt 0:00:00]} 5. Nxc6 {[%emt 0:00:03]} Qf6 {[%emt 0:00:00]} 6. Qf3 {[%emt 0:00:09]} dxc6 {[%emt 0:00:00]} 7. Nc3 {[%emt 0:00:04] C45: Scotch Game} Be6 {[%emt 0:00:07]} 8. Qg3 {[%emt 0:00:04]} O-O-O {[%emt 0:00:13]} 9. Be3 {[%emt 0:00:05]} Bxe3 {[%emt 0:00:06]} 10. Qxe3 {[%emt 0:00:02]} Kb8 {[%emt 0:00:12]} 11. Bd3 {[%emt 0:00:06]} (11. f4 Qe7 12. Bd3 Nh6 13. O-O-O f6 14. g3 Nf7 {½-½ (29) Nepomniachtchi,I (2766)-Carlsen,M (2851) Leuven 2017}) 11... g5 {[%emt 0:00:19]} 12. O-O-O {[%emt 0:00:31]} Ne7 {[%emt 0:00:31]} 13. e5 {[%emt 0:02:17]} Qg7 {[%emt 0:00:54]} 14. Rhe1 {[%emt 0:01:50] [#]} Nd5 $146 {[%emt 0:02:37]} ({Predecessor:} 14... h6) 15. Nxd5 {[%emt 0:01:39]} cxd5 {[%emt 0:06:24]} 16. g3 {[%emt 0:03:19]} g4 {[%emt 0:00:53]} 17. Kb1 {[%emt 0:04:51]} h5 {[%emt 0:08:08]} 18. Qf4 {[%emt 0:04:11]} Qh6 {[%emt 0:03:10]} 19. Qd4 {[%emt 0:02:08]} Rc8 {[%emt 0:01:49]} 20. Bf1 {[%emt 0:02:20]} c5 {[%emt 0:10:06]} 21. Qa4 {[%emt 0:03:10]} Rhd8 {[%emt 0:02:12]} 22. Re3 {[%emt 0:01:27]} Bf5 {[%emt 0:13:26]} 23. Bg2 {[%emt 0:02:50]} Bd7 {[%emt 0:06:53]} 24. Qb3 {[%emt 0:06:02]} Bc6 {[%emt 0:01:23]} 25. f4 {[%emt 0:07:17]} d4 {[%emt 0:05:52]} 26. Bxc6 {[%emt 0:02:55]} Qxc6 {[%emt 0:00:08]} 27. Re2 {[%emt 0:00:30]} c4 {[%emt 0:02:55]} 28. Qb4 {[%emt 0:01:15] [#]} c3 $1 {[%emt 0:08:12]} 29. Qb3 {[%emt 0:07:40]} Qf3 {[%emt 0:05:00]} 30. Ree1 {[%emt 0:03:08]} Rc6 {[%emt 0:04:09]} 31. Qxf7 {[%emt 0:09:24]} d3 {[%emt 0:01:59]} 32. Qb3 {[%emt 0:04:48]} Rb6 {[%emt 0:11:03]} 33. Qxc3 $19 {[%emt 0:14:57]} d2 {[%emt 0:01:27]} 34. Qxf3 {[%emt 0:01:55]} dxe1=Q {[%emt 0:00:07]} 35. Rxe1 {[%emt 0:00:17]} gxf3 {[%emt 0:00:04]} 36. Rf1 {[%emt 0:01:01]} Rd2 {[%emt 0:02:32]} 37. Kc1 {[%emt 0:00:01]} Rxh2 {[%emt 0:00:39]} 38. Rxf3 {[%emt 0:00:08]} Kc8 {[%emt 0:01:42]} 39. f5 {[%emt 0:00:47]} Kd7 {[%emt 0:01:38]} 40. e6+ {[%emt 0:00:00]} Ke8 {[%emt 0:00:00]} 41. Rd3 {[%emt 0:04:40]} Rc6 {[%emt 0:02:15]} 42. c3 {[%emt 0:00:04]} Rf2 {[%emt 0:00:22]} 43. Rd5 {[%emt 0:00:09]} b6 {[%emt 0:00:37]} 0-1

[Event "WYCC 2018 O14"]
[Site "Halkidiki"]
[Date "2018.10.30"]
[Round "11"]
[White "Subelj, Jan"]
[Black "Manafov, Vugar"]
[Result "1-0"]
[ECO "B04"]
[WhiteElo "2281"]
[BlackElo "2245"]
[Annotator "NA"]
[PlyCount "99"]
[EventDate "2018.10.20"]
[EventType "swiss"]
[EventCountry "GRE"]
[SourceTitle "playchess.com"]
[Source "ChessBase"]
[SourceQuality "1"]
[TimeControl "40/5400+30:1800+30"]

1. e4 {[%emt 0:00:15]} Nf6 {[%emt 0:00:00]} 2. e5 {[%emt 0:00:32]} Nd5 {[%emt 0:00:00]} 3. d4 {[%emt 0:00:08]} d6 {[%emt 0:00:00]} 4. Nf3 {[%emt 0:00:08]} Nb6 {[%emt 0:00:00]} 5. a4 {[%emt 0:00:36]} a5 {[%emt 0:00:13]} 6. Nc3 {[%emt 0:00:18]} g6 {[%emt 0:05:07] B04: Alekhine's Defence: 4 Nf3} (6... Bg4 7. h3 Bh5 8. g4 Bg6 9. e6 fxe6 10. Ng5 Qd7 11. Qe2 Nc6 12. Nxe6 Nb4 13. Nb5 Rc8 14. Na3 {1-0 (28) Zvjaginsev,V (2660)-Panarin,M (2558) St Petersburg 2015}) 7. exd6 {[%emt 0:01:23] LiveBook: 17 Games} cxd6 {[%emt 0:00:05]} 8. Nb5 {[%emt 0:03:02]} Bg7 {[%emt 0:05:59]} 9. Be2 {[%emt 0:03:25]} O-O {[%emt 0:01:07]} 10. O-O {[%emt 0:00:08]} Nc6 {[%emt 0:08:47]} 11. c3 {[%emt 0:01:00]} Be6 {[%emt 0:09:26]} 12. b3 $146 {[%emt 0:24:59]} ({Predecessor:} 12. Re1 Na7 13. Nxa7 Rxa7 14. Bd3 {1-0 (32) Nagy,G (2403)-Varga,Z (2450) Kecskemet 2015}) 12... Rc8 {[%emt 0:07:24]} 13. Bb2 {[%emt 0:01:22]} h6 {[%emt 0:01:21]} 14. Re1 {[%emt 0:00:33]} Re8 {[%emt 0:09:29]} 15. Bd3 {[%emt 0:01:58]} Qd7 {[%emt 0:00:56]} 16. c4 {[%emt 0:03:44]} Bf5 {[%emt 0:02:54]} 17. Bc3 {[%emt 0:02:52]} d5 {[%emt 0:22:50]} 18. c5 {[%emt 0:00:29]} Na8 {[%emt 0:00:04]} 19. Bxf5 {[%emt 0:00:38]} Qxf5 {[%emt 0:01:05]} 20. Qd2 {[%emt 0:00:13]} b6 {[%emt 0:00:09]} 21. cxb6 {[%emt 0:00:22]} Nxb6 {[%emt 0:00:01]} 22. Bxa5 {[%emt 0:01:05]} Nd7 {[%emt 0:00:44]} 23. Bc3 {[%emt 0:00:40]} Nf6 {[%emt 0:00:07]} 24. Rac1 {[%emt 0:08:56]} Ne4 {[%emt 0:01:19]} 25. Qe3 {[%emt 0:01:31]} Red8 {[%emt 0:05:35]} 26. Red1 {[%emt 0:06:58]} Bf6 {[%emt 0:04:24]} 27. Be1 {[%emt 0:04:10]} Kg7 {[%emt 0:01:35]} 28. h3 {[%emt 0:04:42]} Qd7 {[%emt 0:01:52]} 29. Nc3 {[%emt 0:04:39]} Nxc3 {[%emt 0:05:05]} 30. Rxc3 {[%emt 0:01:21]} Rb8 {[%emt 0:01:35]} 31. Rdc1 {[%emt 0:01:02]} Rb6 {[%emt 0:01:25]} 32. Bd2 {[%emt 0:01:52]} h5 {[%emt 0:00:16]} 33. a5 {[%emt 0:02:26]} Ra6 {[%emt 0:00:01]} 34. Rc5 {[%emt 0:00:10]} Qb7 {[%emt 0:00:46]} 35. b4 {[%emt 0:01:00]} Na7 {[%emt 0:00:38]} 36. b5 {[%emt 0:02:07]} Nxb5 {[%emt 0:01:52]} 37. Rb1 {[%emt 0:00:09]} Rb8 {[%emt 0:00:04]} 38. Rcxb5 {[%emt 0:00:24]} Qxb5 $18 {[%emt 0:00:05]} 39. Rxb5 {[%emt 0:00:07]} Rxb5 {[%emt 0:00:04]} 40. Qd3 {[%emt 0:00:00]} Rbxa5 {[%emt 0:00:00]} 41. Bxa5 {[%emt 0:00:19]} Rxa5 {[%emt 0:00:03]} 42. g4 {[%emt 0:01:02]} hxg4 {[%emt 0:00:04]} 43. hxg4 {[%emt 0:00:07]} e6 {[%emt 0:00:18]} 44. Qd2 {[%emt 0:02:16]} Ra7 {[%emt 0:03:07]} 45. Qf4 {[%emt 0:00:23]} Bd8 {[%emt 0:00:54]} 46. Qb8 {[%emt 0:00:38]} Ra1+ {[%emt 0:00:06]} 47. Kg2 {[%emt 0:00:04]} Be7 {[%emt 0:01:03]} 48. Qc7 {[%emt 0:00:49]} Kf8 {[%emt 0:00:05]} 49. Ne5 {[%emt 0:01:02]} g5 {[%emt 0:00:56]} 50. Qc8+ {[%emt 0:00:09]} 1-0

[Event "WYCC 2018 O14"]
[Site "Halkidiki"]
[Date "2018.10.30"]
[Round "11"]
[White "Gombocz, Ferenc Jr."]
[Black "Wang, Alex"]
[Result "1-0"]
[ECO "A15"]
[WhiteElo "2271"]
[BlackElo "2076"]
[Annotator "NA"]
[PlyCount "59"]
[EventDate "2018.10.20"]
[EventType "swiss"]
[EventCountry "GRE"]
[SourceTitle "playchess.com"]
[Source "ChessBase"]
[SourceQuality "1"]
[TimeControl "40/5400+30:1800+30"]

1. c4 {[%emt 0:00:00]} Nf6 {[%emt 0:00:00]} 2. g3 {[%emt 0:00:00]} g6 {[%emt 0:00:00]} 3. Bg2 {[%emt 0:00:00]} Bg7 {[%emt 0:00:00]} 4. Nc3 {[%emt 0:00:00]} O-O {[%emt 0:00:00]} 5. e4 {[%emt 0:00:00]} d6 {[%emt 0:00:03]} 6. Nge2 {[%emt 0:00:05]} c5 {[%emt 0:00:32]} 7. O-O {[%emt 0:00:13]} Nc6 {[%emt 0:00:07]} 8. d3 {[%emt 0:00:07]} a6 {[%emt 0:00:15]} 9. h3 {[%emt 0:00:06]} Rb8 {[%emt 0:00:05]} 10. a4 {[%emt 0:00:07]} Ne8 {[%emt 0:00:35]} 11. Be3 {[%emt 0:00:12]} Nc7 {[%emt 0:00:04]} 12. d4 {[%emt 0:00:11]} cxd4 {[%emt 0:00:17]} 13. Nxd4 {[%emt 0:00:09]} Ne6 {[%emt 0:00:04]} 14. Nde2 {[%emt 0:00:24] A36: Symmetrical English vs ...g6: 4 Bg2 Bg7} Nc5 {[%emt 0:00:29]} 15. Rb1 {[%emt 0:00:32]} Nb4 {[%emt 0:00:42]} (15... b6 16. b3 a5 17. Qd2 Bd7 18. Bh6 Bxh6 19. Qxh6 f6 20. Qe3 g5 21. Nd5 Kh8 {½-½ (35) Hall,R (2640)-Robson,N (2602) ICCF email 2014}) 16. b3 {[%emt 0:00:36]} f5 {[%emt 0:01:50]} 17. Nd5 {[%emt 0:02:19]} a5 {[%emt 0:01:37]} 18. Nxb4 {[%emt 0:12:46]} axb4 {[%emt 0:00:05]} 19. Nf4 $146 {[%emt 0:09:38]} ({Predecessor:} 19. Qd2 fxe4 20. Qxb4 b6 21. Qd2 Bb7 {½-½ (38) De Smet,K (2188)-Caballero Perez,A (2360) ICCF email 2012}) 19... Nxe4 {[%emt 0:23:22]} 20. Bxe4 {[%emt 0:01:15]} fxe4 {[%emt 0:00:05]} 21. Qd5+ {[%emt 0:00:08]} Kh8 {[%emt 0:00:44]} 22. Rfd1 {[%emt 0:10:08]} Qd7 {[%emt 0:14:32]} 23. g4 {[%emt 0:19:00]} b5 {[%emt 0:23:23]} 24. cxb5 {[%emt 0:03:43]} Be5 {[%emt 0:00:06]} 25. Ng2 {[%emt 0:01:31]} Bb7 $2 {[%emt 0:02:10]} (25... Rf3 $14) 26. Qxe5+ {[%emt 0:00:27]} Kg8 {[%emt 0:01:57]} 27. Qg5 {[%emt 0:02:23]} Rf3 {[%emt 0:01:05]} 28. Nh4 {[%emt 0:01:26]} Rf7 {[%emt 0:00:54]} 29. Nf5 $18 {[%emt 0:03:06]} Kf8 {[%emt 0:00:56]} 30. Ng3 {[%emt 0:00:33]} 1-0

[Event "WYCC 2018 O14"]
[Site "Halkidiki"]
[Date "2018.10.30"]
[Round "11"]
[White "Czopor, Maciej"]
[Black "Stolyarsky, Yegor"]
[Result "1-0"]
[ECO "C77"]
[WhiteElo "2219"]
[BlackElo "2006"]
[Annotator "NA"]
[PlyCount "85"]
[EventDate "2018.10.20"]
[EventType "swiss"]
[EventCountry "GRE"]
[SourceTitle "playchess.com"]
[Source "ChessBase"]
[SourceQuality "1"]
[TimeControl "40/5400+30:1800+30"]

1. e4 {[%emt 0:00:00]} e5 {[%emt 0:02:15]} 2. Nf3 {[%emt 0:00:00]} Nc6 {[%emt 0:00:25]} 3. Bb5 {[%emt 0:00:00]} a6 {[%emt 0:00:18]} 4. Ba4 {[%emt 0:00:13]} Nf6 {[%emt 0:00:25]} 5. d3 {[%emt 0:00:15]} b5 {[%emt 0:01:24]} 6. Bb3 {[%emt 0:02:24]} Bc5 {[%emt 0:00:26]} 7. Nc3 {[%emt 0:00:13]} d6 {[%emt 0:01:49] C77: Ruy Lopez: 3...a6 4 Ba4 Nf6, unusual lines} 8. Nd5 {[%emt 0:00:21]} h6 {[%emt 0:08:33]} 9. c3 {[%emt 0:00:33]} (9. O-O O-O 10. Be3 Bxe3 11. fxe3 Na5 12. Nxf6+ Qxf6 13. Bd5 c6 14. Nd4 Qg5 15. Nxc6 Nxc6 16. Bxc6 Qxe3+ {½-½ (32) Anand,V (2760)-Mamedyarov,S (2808) Stavanger 2018}) 9... Be6 {[%emt 0:03:26]} 10. O-O {[%emt 0:19:53]} Ba7 {[%emt 0:02:48]} 11. a4 $146 {[%emt 0:10:01]} ({Predecessor:} 11. Be3 Bxd5 12. exd5 Ne7 13. Bxa7 Rxa7 14. d4 e4 15. Nd2 {½-½ (30) Jablonicky,M (2302)-Motuz,K (2425) Slovakia 2017}) 11... Bxd5 {[%emt 0:06:12]} 12. Bxd5 {[%emt 0:02:54]} Nxd5 {[%emt 0:02:14]} 13. exd5 {[%emt 0:00:19]} Ne7 {[%emt 0:00:43]} 14. Qb3 {[%emt 0:03:35]} O-O {[%emt 0:01:08]} 15. axb5 {[%emt 0:03:47]} axb5 {[%emt 0:00:07]} 16. Kh1 {[%emt 0:00:52]} Bc5 {[%emt 0:07:13]} 17. Be3 {[%emt 0:05:57]} Bxe3 {[%emt 0:02:21]} 18. fxe3 {[%emt 0:00:12]} Qd7 {[%emt 0:06:49]} 19. e4 {[%emt 0:10:14]} Kh8 {[%emt 0:14:18]} 20. d4 {[%emt 0:05:44]} f6 {[%emt 0:05:31]} 21. h3 {[%emt 0:01:15]} Ng6 {[%emt 0:01:19]} 22. Kh2 {[%emt 0:02:16]} Rfe8 {[%emt 0:04:38]} 23. dxe5 {[%emt 0:05:14]} fxe5 {[%emt 0:01:32]} 24. Ra3 {[%emt 0:03:56]} Rxa3 {[%emt 0:06:08]} 25. Qxa3 {[%emt 0:00:51]} Qf7 {[%emt 0:05:05]} 26. Nd2 {[%emt 0:02:40]} Nf4 {[%emt 0:02:37]} 27. Qa7 {[%emt 0:02:08]} Qh5 {[%emt 0:04:32]} 28. Rf3 {[%emt 0:02:35] [#]} Nxg2 $1 {[%emt 0:04:34]} 29. Qxc7 {[%emt 0:00:56]} Nh4 {[%emt 0:01:18]} 30. Rf2 {[%emt 0:01:54]} Qg5 {[%emt 0:02:44]} 31. Qc6 {[%emt 0:02:12]} Rb8 {[%emt 0:01:54]} 32. Qxd6 {[%emt 0:00:26]} Ra8 {[%emt 0:00:12]} 33. Nf1 {[%emt 0:00:24]} Ra1 {[%emt 0:00:52]} 34. Qb8+ {[%emt 0:00:37]} Kh7 {[%emt 0:00:06]} 35. Qxb5 {[%emt 0:00:09]} Ng6 {[%emt 0:00:53]} 36. Qd3 {[%emt 0:05:05]} Nf4 {[%emt 0:00:32]} 37. Qg3 {[%emt 0:00:18]} Qh5 {[%emt 0:00:25]} 38. Qg4 {[%emt 0:02:21]} Qe8 {[%emt 0:00:35]} 39. d6 {[%emt 0:00:46]} Qb5 {[%emt 0:00:19]} 40. d7 {[%emt 0:00:00]} Qb6 {[%emt 0:00:00]} 41. Rd2 {[%emt 0:06:33]} ({Weaker is} 41. Rxf4 exf4 42. Nd2 Rc1 $11) 41... Qd8 $18 {[%emt 0:07:08]} 42. Qf5+ {[%emt 0:02:31]} Ng6 {[%emt 0:01:17]} 43. Rd6 {[%emt 0:06:19]} 1-0

[Event "WYCC 2018 O14"]
[Site "Halkidiki"]
[Date "2018.10.30"]
[Round "11"]
[White "Munshi, Aditya"]
[Black "Muntean, Victor"]
[Result "1-0"]
[ECO "C55"]
[WhiteElo "2133"]
[BlackElo "1876"]
[Annotator "NA"]
[PlyCount "49"]
[EventDate "2018.10.20"]
[EventType "swiss"]
[EventCountry "GRE"]
[SourceTitle "playchess.com"]
[Source "ChessBase"]
[SourceQuality "1"]
[TimeControl "40/5400+30:1800+30"]

1. e4 {[%emt 0:00:00]} e5 {[%emt 0:00:00]} 2. Nf3 {[%emt 0:00:00]} Nc6 {[%emt 0:00:00]} 3. Bc4 {[%emt 0:00:00]} Nf6 {[%emt 0:00:00]} 4. d3 {[%emt 0:00:03]} Be7 {[%emt 0:00:00]} 5. O-O {[%emt 0:00:15]} O-O {[%emt 0:00:04]} 6. Re1 {[%emt 0:00:02]} d6 {[%emt 0:00:08]} 7. a4 {[%emt 0:00:05]} Na5 {[%emt 0:00:46]} 8. Ba2 {[%emt 0:00:00]} c5 {[%emt 0:00:11]} 9. c3 {[%emt 0:00:08]} Nc6 {[%emt 0:00:41]} 10. Na3 {[%emt 0:00:02]} h6 {[%emt 0:00:25]} 11. Bd2 {[%emt 0:01:44]} a6 {[%emt 0:00:25]} 12. h3 {[%emt 0:00:42]} Re8 {[%emt 0:02:54]} 13. Nc4 {[%emt 0:03:51]} Be6 {[%emt 0:00:51]} 14. Ne3 {[%emt 0:17:19]} Bxa2 {[%emt 0:05:35]} 15. Rxa2 {[%emt 0:00:00]} d5 {[%emt 0:02:21]} 16. Nf5 {[%emt 0:16:15]} dxe4 {[%emt 0:14:51]} 17. dxe4 {[%emt 0:00:46]} c4 {[%emt 0:02:54]} 18. Qe2 {[%emt 0:08:26]} b5 $16 {[%emt 0:00:37]} (18... Qd3 $11 {remains equal.}) 19. axb5 {[%emt 0:02:08]} axb5 {[%emt 0:00:05]} 20. Rxa8 {[%emt 0:00:06]} Qxa8 {[%emt 0:00:06]} 21. N3h4 {[%emt 0:00:54]} Kh7 {[%emt 0:05:20]} 22. Qf3 {[%emt 0:00:37]} Rg8 {[%emt 0:09:35]} 23. Bxh6 {[%emt 0:03:36]} Qe8 {[%emt 0:09:51]} 24. Bg5 {[%emt 0:02:52]} g6 {[%emt 0:03:29]} 25. Nxe7 {[%emt 0:00:15]} 1-0

[Event "WYCC 2018 O14"]
[Site "Halkidiki"]
[Date "2018.10.30"]
[Round "11"]
[White "Rasti, Arvin"]
[Black "Kouvidis, Ioannis"]
[Result "0-1"]
[ECO "A48"]
[WhiteElo "2064"]
[BlackElo "1896"]
[Annotator "NA"]
[PlyCount "86"]
[EventDate "2018.10.20"]
[EventType "swiss"]
[EventCountry "GRE"]
[SourceTitle "playchess.com"]
[Source "ChessBase"]
[SourceQuality "1"]
[TimeControl "40/5400+30:1800+30"]

1. d4 {[%emt 0:00:00]} Nf6 {[%emt 0:00:00]} 2. Bf4 {[%emt 0:00:00]} g6 {[%emt 0:00:00]} 3. Nf3 {[%emt 0:00:00]} Bg7 {[%emt 0:00:00]} 4. e3 {[%emt 0:00:05]} O-O {[%emt 0:00:09]} 5. Be2 {[%emt 0:00:09]} d6 {[%emt 0:01:16]} 6. h3 {[%emt 0:00:23]} Nbd7 {[%emt 0:00:26]} 7. c4 {[%emt 0:00:11]} c5 {[%emt 0:02:38]} 8. Nc3 {[%emt 0:00:15]} a6 {[%emt 0:02:41]} 9. O-O {[%emt 0:01:26] E61: Königsindisch (Abweichungen der Hauptvariante)} cxd4 {[%emt 0:05:19]} 10. exd4 {[%emt 0:00:28]} d5 {[%emt 0:00:15]} 11. c5 {[%emt 0:07:02]} Nb8 {[%emt 0:04:09]} 12. b4 $146 {[%emt 0:03:59]} ({Vorgänger:} 12. Na4 Nfd7 13. Rc1 Nc6 14. Qd2 Re8 15. Rfe1 f6 16. Red1 Kh8 {½-½ (50) Lobo,R (2310)-Hummel,P (2330) San Francisco 1999}) 12... Nc6 {[%emt 0:03:48]} 13. Rb1 {[%emt 0:02:37]} Bf5 {[%emt 0:00:42]} 14. Bd3 {[%emt 0:00:22]} Ne4 {[%emt 0:01:01]} 15. Qc2 {[%emt 0:07:17]} Nxc3 {[%emt 0:05:01]} 16. Qxc3 {[%emt 0:00:16]} Qd7 {[%emt 0:00:42]} 17. a3 {[%emt 0:02:28]} Be4 {[%emt 0:02:22]} 18. Ne5 {[%emt 0:04:12]} Qf5 {[%emt 0:03:40]} 19. Bxe4 {[%emt 0:08:39]} Qxf4 {[%emt 0:01:58]} 20. Nxc6 {[%emt 0:12:02]} bxc6 {[%emt 0:00:06]} 21. Bd3 {[%emt 0:00:19]} Bxd4 {[%emt 0:02:13]} 22. Qc2 {[%emt 0:00:20]} Qc7 {[%emt 0:03:05]} 23. Rfd1 {[%emt 0:01:01]} Bg7 {[%emt 0:00:19]} 24. Qa4 {[%emt 0:00:23]} Qb7 {[%emt 0:01:09]} 25. Qa5 {[%emt 0:00:14]} e5 {[%emt 0:00:34]} 26. Rdc1 {[%emt 0:00:37]} e4 {[%emt 0:00:39]} 27. Be2 {[%emt 0:00:11]} Rfb8 {[%emt 0:01:35]} 28. a4 {[%emt 0:00:17]} Be5 {[%emt 0:01:11]} 29. Qb6 {[%emt 0:00:18]} Qd7 {[%emt 0:00:23]} 30. Qxa6 {[%emt 0:01:34]} Rxa6 {[%emt 0:00:16]} 31. Bxa6 {[%emt 0:00:03]} Qa7 {[%emt 0:01:38]} 32. b5 {[%emt 0:00:58]} Rd8 {[%emt 0:02:25]} 33. a5 {[%emt 0:01:09]} cxb5 {[%emt 0:00:44]} 34. Bxb5 {[%emt 0:00:06]} Qxa5 {[%emt 0:00:15]} 35. c6 {[%emt 0:00:02]} Bd6 {[%emt 0:06:40]} 36. Rd1 $19 {[%emt 0:00:20]} d4 {[%emt 0:00:27]} 37. Bc4 {[%emt 0:00:35]} Bc7 {[%emt 0:02:01]} 38. Rb7 {[%emt 0:00:53]} Qe5 {[%emt 0:00:17]} 39. g3 {[%emt 0:00:50]} d3 {[%emt 0:02:26]} 40. Rb5 {[%emt 0:00:00]} Qf6 {[%emt 0:00:00]} 41. Bd5 {[%emt 0:00:50]} Rxd5 {[%emt 0:01:30]} 42. Rxd5 {[%emt 0:00:05]} Qxc6 {[%emt 0:00:01]} 43. Rd4 {[%emt 0:00:16]} Bb6 {[%emt 0:00:26]} 0-1

[Event "WYCC 2018 O14"]
[Site "Halkidiki"]
[Date "2018.10.30"]
[Round "11"]
[White "Antonica, Dragos-Andrei"]
[Black "Avila Pavas, Santiago"]
[Result "1/2-1/2"]
[ECO "E63"]
[WhiteElo "2061"]
[BlackElo "2277"]
[Annotator "NA"]
[PlyCount "48"]
[EventDate "2018.10.20"]
[EventType "swiss"]
[EventCountry "GRE"]
[SourceTitle "playchess.com"]
[Source "ChessBase"]
[SourceQuality "1"]
[TimeControl "40/5400+30:1800+30"]

1. Nf3 {[%emt 0:00:00]} g6 {[%emt 0:00:00]} 2. g3 {[%emt 0:00:00]} Bg7 {[%emt 0:00:01]} 3. Bg2 {[%emt 0:00:00]} Nf6 {[%emt 0:01:15]} 4. O-O {[%emt 0:00:02]} O-O {[%emt 0:00:06]} 5. d4 {[%emt 0:00:02]} d6 {[%emt 0:00:07]} 6. c4 {[%emt 0:00:07]} Nc6 {[%emt 0:00:04]} 7. Nc3 {[%emt 0:04:09]} a6 {[%emt 0:02:05]} 8. b3 {[%emt 0:03:59]} Rb8 {[%emt 0:04:38]} 9. a4 {[%emt 0:25:43]} Bg4 {[%emt 0:30:51] E63: King's Indian: Fianchetto: Panno Variation with 7...a6} 10. Bb2 Nd7 11. d5 {[%emt 0:08:22]} Bxf3 {[%emt 0:01:20]} 12. exf3 $146 {[%emt 0:00:27]} ({Predecessor:} 12. Bxf3 Na5 13. Qc2 c6 14. Rab1 Ne5 15. Bg2 b5 16. axb5 cxb5 17. cxb5 axb5 18. Rfc1 Qb6 {½-½ (18) Huzman,A (2475)-Hebden,M (2475) Vrnjacka Banja 1991}) 12... Nd4 {[%emt 0:05:44]} 13. Rb1 {[%emt 0:00:33]} c5 {[%emt 0:03:54]} 14. Ne2 {[%emt 0:04:18]} Nxe2+ {[%emt 0:07:10]} 15. Qxe2 {[%emt 0:00:02]} Bxb2 {[%emt 0:07:37]} 16. Rxb2 {[%emt 0:03:08]} Nf6 {[%emt 0:00:19]} 17. Re1 {[%emt 0:01:14]} Re8 {[%emt 0:00:11]} 18. Qd3 {[%emt 0:01:16]} b5 {[%emt 0:04:48]} 19. axb5 {[%emt 0:00:14]} axb5 {[%emt 0:00:05]} 20. Rbe2 {[%emt 0:02:13]} bxc4 $11 {[%emt 0:02:08]} 21. bxc4 {[%emt 0:01:44]} Nd7 {[%emt 0:03:51]} 22. Qd2 {[%emt 0:07:56]} Rb4 {[%emt 0:05:55]} 23. Qc3 {[%emt 0:18:04]} Ne5 {[%emt 0:07:01]} 24. Re4 {[%emt 0:01:46]} Qa5 {[%emt 0:08:29]} 1/2-1/2